bitfinex-derivatives/quotes_SOLF0:USTF0_20250321
["timestamp","ask_amount","ask_price","bid_price","bid_amount"]
[1742549897086,0.05045601,128.48,128.45,0.05629288]
[1742549897285,11.99204137,128.47,128.45,0.05629288]
[1742549898285,0.05045601,128.48,128.45,0.05629288]
[1742549898689,7.83805601,128.48,128.45,7.84469288]
[1742549898888,0.05045601,128.48,128.45,0.05629288]
[1742549899485,0.05045601,128.48,128.45,7.84509288]
[1742549900383,7.7877,128.47,128.45,7.84509288]
[1742549901093,7.7877,128.47,128.45,0.05629288]
[1742549901389,35.6477,128.47,128.45,0.05629288]
[1742549904992,7.7882,128.46,128.45,0.05629288]
[1742549908095,47.63994137,128.47,128.45,0.05629288]
[1742549908299,27.86,128.47,128.45,0.05629288]
[1742549908593,0.05045601,128.48,128.47,7.7876]
[1742549908796,27.91045601,128.48,128.47,7.7876]
[1742549909399,0.05045601,128.48,128.47,19.77964137]
[1742549913301,0.05045601,128.48,128.47,11.99204137]
[1742549913502,46.73,128.43,128.3,316.79412017]
[1742549913801,19.78544137,128.38,128.31,11.99204137]
[1742549914001,11.99204137,128.36,128.3,351.90616154]
[1742549914202,30.38,128.35,128.3,351.90616154]
[1742549914401,38.1749,128.35,128.3,351.90616154]
[1742549914606,0.05692419,128.34,128.3,351.90616154]
[1742549914907,0.05692419,128.34,128.3,359.70376154]
[1742549915103,0.05692419,128.34,128.3,347.71172017]
[1742549915400,0.05692419,128.34,128.3,38.9176]
[1742549915806,0.05692419,128.34,128.29,6.6074]
[1742549916006,2.31624603,128.33,128.29,6.6074]
[1742549916207,18.78978675,128.41,128.3,49.10978675]
[1742549916400,30.32,128.4,128.31,62.0]
[1742549916805,269.4533229,128.34,128.32,18.78978675]
[1742549917006,258.6833229,128.34,128.33,7.7958]
[1742549917806,258.41209419,128.34,128.33,7.7958]
[1742549918308,437.87007521,128.34,128.31,26.58678675]
[1742549918706,437.87007521,128.34,128.31,31.12]
[1742549919408,179.45798102,128.34,128.31,31.12]
[1742549919608,187.25358102,128.34,128.29,44.7656]
[1742549919808,187.25358102,128.34,128.29,63.55538675]
[1742549920001,187.25358102,128.34,128.3,62.0]
[1742549920508,129.11145292,128.32,128.3,62.0]
[1742549921009,129.17027994,128.32,128.3,7.7979]
[1742549921209,129.17027994,128.32,128.29,55.75718675]
[1742549921707,129.17027994,128.32,128.31,7.7973]
[1742549921901,0.05882702,128.32,128.31,7.7973]
[1742549922604,85.99942294,128.33,128.31,7.7973]
[1742549922910,85.99942294,128.33,128.32,30.28]
[1742549923103,45.63446597,128.34,128.32,30.28]
[1742549923305,45.63446597,128.34,128.31,18.78978675]
[1742549923504,45.63446597,128.34,128.3,38.0776]
[1742549923905,0.05016384,128.33,128.31,0.05295817]
[1742549924105,0.05016384,128.33,128.31,7.85015817]
[1742549928212,0.05016384,128.33,128.31,0.05295817]
[1742549929305,7.84656384,128.33,128.31,0.05295817]
[1742549930909,0.05016384,128.33,128.31,7.85015817]
[1742549931806,0.05016384,128.33,128.31,0.05295817]
[1742549932908,0.05016384,128.33,128.31,7.85015817]
[1742549936414,0.05016384,128.33,128.32,7.7967]
[1742549937410,29.94,128.37,128.34,7.7951]
[1742549937810,29.94,128.37,128.35,7.7946]
[1742549938108,29.94,128.37,128.31,48.72978675]
[1742549938306,37.7337,128.37,128.34,7.7955]
[1742549938617,0.05264376,128.35,128.34,7.7955]
[1742549942617,18.78978675,128.41,128.37,7.7936]
[1742549942823,29.82,128.4,128.37,7.7936]
[1742549943017,29.82,128.4,128.34,6.7928]
[1742549943018,32.10508218,128.4,128.34,6.7928]
[1742549943418,2.28508218,128.39,128.34,6.7928]
[1742549943722,2.28508218,128.39,128.38,7.7929]
[1742549944825,32.06508218,128.39,128.37,7.7934]
[1742549945025,32.06508218,128.39,128.35,0.05791016]
[1742549945228,2.28508218,128.38,128.37,26.58348675]
[1742549945422,0.0494712,128.4,128.37,48.56978675]
[1742549945623,0.0494712,128.4,128.37,29.78]
[1742549945823,0.0494712,128.4,128.35,29.91791016]
[1742549946021,18.78978675,128.39,128.35,0.05791016]
[1742549946431,18.78978675,128.37,128.35,0.05791016]
[1742549946628,29.9,128.36,128.35,0.05791016]
[1742549949128,37.6943,128.36,128.35,0.05791016]
[1742549949423,29.9,128.36,128.35,0.05791016]
[1742549953228,328.45630026,128.36,128.35,0.05791016]
[1742549953619,627.01260052,128.36,128.35,0.05791016]
[1742549955226,434.41800743,128.36,128.35,0.05791016]
[1742549956032,434.41800743,128.36,128.35,7.85281016]
[1742549956228,404.51800743,128.36,128.35,7.85281016]
[1742549957530,406.80494313,128.36,128.35,7.85281016]
[1742549958232,406.80494313,128.36,128.35,0.05791016]
[1742549959735,493.58988813,128.36,128.35,0.05791016]
[1742549961337,536.9772997,128.36,128.35,0.05791016]
[1742549965545,544.7715997,128.36,128.35,0.05791016]
[1742549965953,542.484664,128.36,128.35,0.05791016]
[1742549968053,534.690364,128.36,128.28,275.96648799]
[1742549968250,29.54,128.35,128.28,275.96648799]
[1742549968453,29.54,128.35,128.3,18.78648799]
[1742549968751,31.83172951,128.35,128.33,7.7957]
[1742549969147,31.88579905,128.35,128.33,7.84592334]
[1742549969446,2.29172951,128.34,128.33,7.84592334]
[1742549970955,195.08295472,128.34,128.33,7.84592334]
[1742549971856,195.08295472,128.34,128.33,0.05022334]
[1742549972861,94.00147985,128.34,128.33,0.05022334]
[1742549973657,101.79697985,128.34,128.33,0.05022334]
[1742549974258,94.00147985,128.34,128.33,0.05022334]
[1742549974870,101.79697985,128.34,128.33,0.05022334]
[1742549975263,199.40461586,128.34,128.33,0.05022334]
[1742549976458,191.60911586,128.34,128.28,257.18]
[1742549976765,191.60911586,128.34,128.28,264.9788]
[1742549976964,237.25394472,128.34,128.28,264.9788]
[1742549977162,7.7977,128.31,128.28,264.9788]
[1742549977358,29.4,128.31,128.28,257.18]
[1742549977565,29.45711104,128.31,128.28,0.05862372]
[1742549977863,7.7982,128.3,128.28,0.05862372]
[1742549978064,2.29172951,128.3,128.28,0.05862372]
[1742549978367,10.09002951,128.3,128.28,0.05862372]
[1742549978658,29.45711104,128.31,128.28,0.05862372]
[1742549978659,2.29172951,128.29,128.28,0.05862372]
[1742549979464,41.07383798,128.29,128.28,0.05862372]
[1742549981365,41.07383798,128.29,128.28,7.85772372]
[1742549982267,103.9937212,128.29,128.28,7.85772372]
[1742549982767,103.9937212,128.29,128.28,0.05862372]
[1742549983359,103.9937212,128.29,128.28,7.85772372]
[1742549984966,2.29172951,128.29,128.28,7.85772372]
[1742549986569,2.29172951,128.29,128.28,0.05862372]
[1742549988572,2.29172951,128.29,128.28,7.85772372]
[1742549989572,2.29172951,128.29,128.28,0.05862372]
[1742549989871,14.32706689,128.29,128.28,0.05862372]
[1742549990569,41.47452681,128.29,128.28,0.05862372]
[1742549991867,49.27302681,128.29,128.28,0.05862372]
[1742549992667,7.7996,128.28,128.24,7.8012]
[1742549992867,29.12,128.27,128.23,269.23533738]
[1742549993071,29.12,128.27,128.25,7.8007]
[1742549993772,0.05520822,128.27,128.26,7.8004]
[1742549994867,2.3408421,128.27,128.26,7.8004]
[1742550000280,10.84819695,128.29,128.28,7.7991]
[1742550000474,62.91988322,128.3,128.28,12.03533738]
[1742550000778,62.91988322,128.3,128.29,7.7985]
[1742550001078,52.11508322,128.3,128.29,7.7985]
[1742550001378,86.78557561,128.31,128.3,7.7979]
[1742550001573,86.83607067,128.31,128.3,19.83323738]
[1742550001772,62.2117449,128.31,128.3,19.83323738]
[1742550003779,0.04965347,128.32,128.31,7.7973]
[1742550013082,2.32681937,128.32,128.31,7.7973]
[1742550014084,2.32681937,128.32,128.3,19.83323738]
[1742550014285,2.32681937,128.32,128.3,7.7979]
[1742550015086,2.2771659,128.31,128.3,7.7979]
[1742550015383,2.2771659,128.31,128.29,7.7982]
[1742550015779,2.2771659,128.31,128.3,7.7979]
[1742550015985,0.04965347,128.32,128.3,7.7979]
[1742550016375,2.27581916,128.31,128.28,12.09269546]
[1742550016779,2.27581916,128.3,128.28,12.09269546]
[1742550016985,2.27581916,128.3,128.29,7.7983]
[1742550022890,0.04965347,128.32,128.31,7.7973]
[1742550023392,2.32939174,128.32,128.31,7.7973]
[1742550040709,61.51893722,128.35,128.34,7.7955]
[1742550040909,61.51893722,128.35,128.34,19.83083738]
[1742550043013,61.51893722,128.35,128.34,7.7955]
[1742550043316,61.51893722,128.35,128.33,7.84834694]
[1742550043515,26.00529117,128.35,128.33,0.05244694]
[1742550043815,54.46529117,128.35,128.32,19.83173738]
[1742550044107,54.46529117,128.35,128.32,12.03533738]
[1742550044414,54.46529117,128.35,128.33,7.7961]
[1742550044611,54.46529117,128.35,128.32,12.03533738]
[1742550044811,54.46529117,128.35,128.33,0.04965769]
[1742550045810,28.46,128.35,128.33,0.04965769]
[1742550046204,28.46,128.35,128.33,7.84575769]
[1742550046618,28.46,128.35,128.33,0.04965769]
[1742550047808,28.46,128.35,128.33,7.84545769]
[1742550053625,28.46,128.35,128.33,0.04965769]
[1742550055817,87.51573386,128.34,128.33,0.04965769]
[1742550058317,87.51573386,128.34,128.33,7.84575769]
[1742550060329,25.99679664,128.34,128.33,7.84575769]
[1742550063332,25.99679664,128.34,128.33,0.04965769]
[1742550063533,25.99679664,128.34,128.32,12.03533738]
[1742550063727,25.99679664,128.34,128.3,12.03533738]
[1742550064132,25.99679664,128.34,128.32,7.7967]
[1742550064434,25.99679664,128.34,128.32,12.03533738]
[1742550064633,26.05257259,128.34,128.33,7.7961]
[1742550066637,98.52149863,128.34,128.32,19.88240331]
[1742550066828,98.52149863,128.34,128.32,12.08590331]
[1742550068337,98.52149863,128.34,128.32,0.05056593]
[1742550068634,25.99679664,128.33,128.32,0.05056593]
[1742550068830,25.99679664,128.33,128.32,7.84726593]
[1742550069835,25.99679664,128.33,128.32,0.05056593]
[1742550070328,45.82843402,128.33,128.29,7.7982]
[1742550070529,4.0003,128.32,128.28,257.2]
[1742550070834,40.25533738,128.31,128.24,40.25533738]
[1742550071429,19.89141802,128.29,128.24,40.25533738]
[1742550071841,12.09281802,128.29,128.24,40.25533738]
[1742550072532,12.09281802,128.29,128.26,7.7998]
[1742550072728,12.09281802,128.29,128.24,40.25533738]
[1742550072929,0.05748064,128.29,128.26,12.03533738]
[1742550073129,10.91492921,128.29,128.26,12.03533738]
[1742550073435,10.91492921,128.29,128.27,7.7995]
[1742550073832,28.2,128.28,128.23,257.2]
[1742550074029,12.03533738,128.27,128.23,257.2]
[1742550074229,20.34553738,128.27,128.23,257.2]
[1742550074430,0.05377431,128.26,128.24,7.8015]
[1742550074624,0.05377431,128.26,128.23,257.2]
[1742550074825,7.85427431,128.26,128.23,7.8018]
[1742550075234,28.24,128.25,128.23,7.8018]
[1742550075432,28.24,128.25,128.24,7.8016]
[1742550076137,28.24,128.25,128.23,7.8018]
[1742550076338,28.24,128.25,128.21,12.03533738]
[1742550076930,28.24,128.25,128.23,7.8019]
[1742550077137,40.27533738,128.25,128.2,12.03533738]
[1742550077435,40.27533738,128.25,128.21,7.8034]
[1742550077631,7.85341624,128.24,128.2,12.03533738]
[1742550078028,0.05141624,128.24,128.2,12.03533738]
[1742550078829,0.05141624,128.24,128.19,40.27533738]
[1742550079727,0.05141624,128.24,128.21,12.03533738]
[1742550080337,0.05141624,128.24,128.23,7.8022]
[1742550081238,0.05141624,128.24,128.22,7.8025]
[1742550081439,0.05141624,128.24,128.21,12.03533738]
[1742550082039,0.05141624,128.24,128.23,19.83753738]
[1742550084536,0.05141624,128.24,128.23,7.8022]
[1742550090349,0.05141624,128.24,128.23,19.83753738]
[1742550098751,1.624e-05,128.24,128.23,47.99753738]
[1742550098949,10.85744857,128.29,128.28,7.7991]
[1742550100352,4.00565751,128.3,128.27,12.09102917]
[1742550100954,16.04099489,128.3,128.27,0.05569179]
[1742550101654,7.7987,128.29,128.27,0.05569179]
[1742550101951,28.18,128.28,128.27,0.05569179]
[1742550102349,28.18,128.28,128.27,7.85539179]
[1742550105250,10.85744857,128.29,128.27,7.85539179]
[1742550106157,10.85744857,128.29,128.28,7.7991]
[1742550106557,69.38278077,128.28,128.27,0.05569179]
[1742550106859,69.38278077,128.28,128.27,7.85509179]
[1742550107655,69.38278077,128.28,128.27,0.05569179]
[1742550108159,69.38278077,128.28,128.27,7.85539179]
[1742550108652,69.38278077,128.28,128.27,0.05569179]
[1742550109660,77.18188077,128.28,128.27,0.05569179]
[1742550109860,77.18188077,128.28,128.23,40.19533738]
[1742550110064,77.18188077,128.28,128.24,7.8013]
[1742550110858,0.05005432,128.27,128.24,7.8013]
[1742550111563,7.84995432,128.27,128.24,7.8013]
[1742550111962,35.92995432,128.27,128.24,7.8013]
[1742550112464,28.13005432,128.27,128.25,7.8006]
[1742550113264,38.98750289,128.27,128.26,7.8004]
[1742550115565,64.9738264,128.27,128.26,7.8004]
[1742550120871,64.9738264,128.27,128.23,12.03533738]
[1742550121172,64.9738264,128.27,128.25,7.8004]
[1742550121972,64.9738264,128.27,128.23,12.03533738]
[1742550122373,97.53315078,128.27,128.23,12.03533738]
[1742550122970,97.53315078,128.27,128.25,7.8006]
[1742550123173,97.53315078,128.27,128.23,12.03533738]
[1742550124176,97.53315078,128.27,128.26,7.8004]
[1742550124476,100.5875334,128.27,128.26,7.8004]
[1742550124678,100.5875334,128.27,128.25,7.8007]
[1742550126877,10.85744857,128.26,128.25,7.8007]
[1742550128974,26.01047115,128.26,128.25,7.8007]
[1742550129181,26.01047115,128.26,128.25,19.83603738]
[1742550130075,26.01047115,128.26,128.25,12.03533738]
[1742550130375,361.0,128.25,128.09,12.03533738]
[1742550130579,12.03533738,128.17,128.11,12.03533738]
[1742550130778,12.03533738,128.15,128.09,12.03533738]
[1742550130976,29.94,128.14,128.09,12.03533738]
[1742550131176,0.05515855,128.13,128.09,12.03533738]
[1742550131579,11.97074154,128.12,128.09,12.03533738]
[1742550131782,5.4320565,128.11,128.07,12.03533738]
[1742550131984,5.4320565,128.1,128.07,12.03533738]
[1742550132171,5.4320565,128.09,128.07,12.03533738]
[1742550132372,6.53868504,128.09,128.07,12.03533738]
[1742550132572,5.85404773,128.08,128.07,12.03533738]
[1742550132874,8.36892659,128.08,128.07,12.03533738]
[1742550133474,12.68876175,128.08,128.07,12.03533738]
[1742550134981,12.67091583,128.08,128.07,12.03533738]
[1742550136288,6.83471402,128.08,128.07,12.03533738]
[1742550136791,12.65775784,128.08,128.07,12.03533738]
[1742550137088,8.33792268,128.08,128.07,12.03533738]
[1742550137287,2.51487886,128.08,128.07,12.03533738]
[1742550140781,4.27912924,128.1,128.07,12.03533738]
[1742550140981,4.27912924,128.1,128.09,12.03533738]
[1742550141490,2.69284232,128.1,128.09,12.03533738]
[1742550142884,2.69284232,128.1,128.09,19.84603738]
[1742550143081,8.13138349,128.13,128.09,12.03533738]
[1742550143286,4.22656762,128.12,128.11,12.03533738]
[1742550143687,4.22656762,128.13,128.11,12.03533738]
[1742550144390,4.27589094,128.13,128.11,12.08996527]
[1742550145692,0.04932332,128.13,128.11,12.08996527]
[1742550146392,0.04932332,128.13,128.12,7.8089]
[1742550151599,0.04932332,128.13,128.11,0.05462789]
[1742550152103,0.04932332,128.13,128.11,7.86382789]
[1742550152399,0.04932332,128.13,128.11,0.05462789]
[1742550153099,0.04932332,128.13,128.12,7.8089]
[1742550153898,4.25180434,128.13,128.12,7.8089]
[1742550154899,10.05764646,128.13,128.12,7.8089]
[1742550155589,12.6862853,128.13,128.12,7.8089]
[1742550157203,12.69150908,128.13,128.12,7.8089]
[1742550161409,22.00020516,128.13,128.12,7.8089]
[1742550161704,12.69150908,128.13,128.12,7.8089]
[1742550162005,22.00020516,128.13,128.12,7.8089]
[1742550162405,12.69150908,128.13,128.12,7.8089]
[1742550162605,22.00020516,128.13,128.12,7.8089]
[1742550162801,22.01369269,128.13,128.12,7.8089]
[1742550166004,12.70092376,128.13,128.12,7.8089]
[1742550166210,10.85744857,128.14,128.13,7.8083]
[1742550166406,16.68560458,128.14,128.13,19.84363738]
[1742550167103,61.16698117,128.15,128.14,7.8077]
[1742550167307,61.21713173,128.15,128.14,7.8077]
[1742550167504,49.46123173,128.15,128.14,7.8077]
[1742550167708,49.46123173,128.15,128.14,19.84303738]
[1742550168213,20.85357494,128.15,128.14,19.84303738]
[1742550168914,130.17235657,128.18,128.14,19.83533738]
[1742550169211,130.17235657,128.18,128.17,12.03533738]
[1742550169714,130.17235657,128.18,128.17,19.84113738]
[1742550170305,130.17235657,128.18,128.17,7.8058]
[1742550170510,0.05099122,128.19,128.17,7.8058]
[1742550170805,0.05099122,128.19,128.16,12.09177482]
[1742550171010,8.8269276,128.18,128.16,12.09177482]
[1742550171312,0.05099122,128.19,128.16,12.09177482]
[1742550171505,8.83435034,128.18,128.16,19.89817482]
[1742550171705,0.05099122,128.19,128.16,12.09177482]
[1742550172402,8.8468793,128.18,128.17,7.8053]
[1742550173108,0.05099122,128.19,128.18,7.8052]
[1742550173313,0.05099122,128.19,128.18,19.84053738]
[1742550173314,8.90447114,128.19,128.18,19.84053738]
[1742550173709,0.05099122,128.19,128.18,19.84053738]
[1742550174509,8.90079713,128.19,128.18,19.84053738]
[1742550176015,8.90079713,128.19,128.18,7.8052]
[1742550176308,0.05099122,128.19,128.18,7.8052]
[1742550176503,4.05944061,128.19,128.18,7.8052]
[1742550176813,12.91562856,128.19,128.18,7.8052]
[1742550177312,4.05944061,128.19,128.18,7.8052]
[1742550178708,2.55469044,128.19,128.18,7.8052]
[1742550179608,2.55430779,128.19,128.18,7.8052]
[1742550181320,7.79e-06,128.19,128.18,7.8052]
[1742550181718,8.84885001,128.24,128.23,7.8022]
[1742550182017,18.29881925,128.24,128.23,7.8022]
[1742550184419,18.29881925,128.24,128.22,7.85153684]
[1742550184621,14.37940476,128.23,128.22,7.85153684]
[1742550184921,18.29881925,128.23,128.22,7.85153684]
[1742550185120,9.44996924,128.23,128.22,7.85153684]
[1742550185322,18.29013634,128.23,128.22,7.85153684]
[1742550185519,9.44996924,128.23,128.22,7.85153684]
[1742550185722,18.29013634,128.23,128.22,7.85153684]
[1742550186019,9.44996924,128.23,128.22,7.85153684]
[1742550186619,5.53055475,128.23,128.22,7.85153684]
[1742550187123,5.53055475,128.23,128.22,0.04903684]
[1742550188525,5.53055475,128.23,128.22,7.85183684]
[1742550189320,5.53055475,128.23,128.22,0.04903684]
[1742550189927,9.44295551,128.23,128.22,0.04903684]
[1742550190333,9.44295551,128.23,128.22,7.85183684]
[1742550191129,5.53055475,128.23,128.22,7.85183684]
[1742550192028,0.05622275,128.25,128.22,7.85183684]
[1742550192221,5.51819316,128.24,128.22,7.85183684]
[1742550192416,5.51819316,128.23,128.22,7.85183684]
[1742550193729,7.9620841,128.23,128.22,7.85183684]
[1742550196231,45.66820029,128.23,128.18,12.03533738]
[1742550196422,14.34430935,128.22,128.18,12.03533738]
[1742550196626,5.51819316,128.21,128.18,12.03533738]
[1742550196827,8.82611619,128.22,128.19,7.8044]
[1742550197019,5.51591782,128.21,128.19,7.8044]
[1742550197225,5.51591782,128.2,128.19,7.8044]
[1742550197428,5.51591782,128.2,128.19,7.86288894]
[1742550197619,7.95980876,128.2,128.19,7.86288894]
[1742550198732,7.95980876,128.2,128.19,0.05848894]
[1742550202829,11.86972271,128.2,128.19,0.05848894]
[1742550203637,28.50461028,128.2,128.19,0.05848894]
[1742550203831,61.51594766,128.2,128.16,269.57533738]
[1742550204038,20.70061028,128.19,128.15,7.8067]
[1742550204337,22.15210539,128.18,128.15,7.8067]
[1742550204535,20.70061028,128.17,128.15,7.8067]
[1742550204730,5.51591782,128.16,128.15,7.8067]
[1742550205234,11.86972271,128.16,128.15,7.8067]
[1742550206937,5.52369734,128.16,128.15,7.8067]
[1742550207137,11.88157439,128.16,128.15,7.8067]
[1742550208731,6.35787705,128.16,128.15,7.8067]
[1742550208942,11.88514874,128.16,128.15,7.8067]
[1742550209241,20.7349915,128.16,128.15,7.8067]
[1742550209931,11.88514874,128.16,128.15,7.8067]
[1742550210334,20.73985819,128.16,128.15,19.84203738]
[1742550210533,0.05891726,128.17,128.16,7.8064]
[1742550210733,0.05891726,128.17,128.16,48.52173738]
[1742550211736,0.05891726,128.17,128.15,19.84203738]
[1742550212047,0.05891726,128.17,128.16,12.03533738]
[1742550212239,4.1149,128.22,128.16,12.03533738]
[1742550212240,32.8149,128.22,128.16,12.03533738]
[1742550212446,32.8149,128.22,128.19,19.83963738]
[1742550213349,32.87171394,128.22,128.2,7.804]
[1742550213845,4.17171394,128.22,128.21,7.8034]
[1742550214049,0.05681394,128.22,128.21,19.83873738]
[1742550222557,5.52542289,128.22,128.21,19.83873738]
[1742550223864,7.85702602,128.22,128.21,19.83873738]
[1742550224062,2.38876272,128.22,128.21,19.83873738]
[1742550224259,0.05681394,128.22,128.21,19.83873738]
[1742550224468,32.46540721,128.29,128.21,277.25873738]
[1742550224662,32.46540721,128.29,128.02,39.073]
[1742550224663,12.03533738,128.22,128.02,39.073]
[1742550224862,12.03533738,128.2,128.13,12.03533738]
[1742550225064,34.68850428,128.19,128.13,12.03533738]
[1742550225263,17.50384166,128.18,128.11,12.03533738]
[1742550225464,5.46850428,128.17,128.11,12.03533738]
[1742550225666,34.68850428,128.16,128.11,12.03533738]
[1742550225966,9.66800069,128.15,128.13,0.05660127]
[1742550226163,5.39110595,128.14,128.13,0.05660127]
[1742550227071,7.72348875,128.14,128.13,0.05660127]
[1742550227568,26.5666093,128.14,128.07,129.89751228]
[1742550227773,34.61110595,128.13,128.07,129.89751228]
[1742550227974,7.72348875,128.12,128.07,129.89751228]
[1742550228165,5.39110595,128.11,128.07,129.89751228]
[1742550228366,34.61110595,128.1,128.05,257.42]
[1742550228565,29.22,128.1,128.05,257.42]
[1742550228766,5.4276965,128.09,128.06,0.05292089]
[1742550228971,5.37803731,128.08,128.06,0.05292089]
[1742550229169,2.3211072,128.08,128.06,0.05292089]
[1742550229667,34.59230183,128.07,127.99,257.54]
[1742550229868,34.59230183,128.07,127.97,276.38312055]
[1742550229869,5.37230183,128.06,127.97,276.38312055]
[1742550230069,5.37230183,128.05,127.97,257.54]
[1742550230371,44.78277834,128.04,127.97,257.54]
[1742550230571,5.36082241,128.03,127.97,257.54]
[1742550230773,0.05006329,128.02,127.99,0.04923341]
[1742550231968,29.4,128.01,127.97,257.54]
[1742550236478,29.4,128.01,127.94,7.8197]
[1742550236678,29.4,128.01,127.93,26.66312055]
[1742550236875,29.4,128.01,127.93,18.84312055]
[1742550237080,0.05432498,127.98,127.93,18.84312055]
[1742550237278,29.39432498,127.98,127.92,257.72]
[1742550237677,29.39432498,127.98,127.9,18.84312055]
[1742550237678,4.1848,127.97,127.9,18.84312055]
[1742550238275,0.05061529,127.95,127.9,18.84312055]
[1742550238472,29.34,127.94,127.89,7.8225]
[1742550238677,29.34,127.94,127.88,48.18312055]
[1742550238878,33.5625,127.94,127.88,56.00622055]
[1742550239078,33.5625,127.94,127.88,48.18312055]
[1742550239278,0.060145,127.92,127.88,48.18312055]
[1742550239679,0.060145,127.92,127.88,56.00632055]
[1742550240080,0.060145,127.92,127.89,7.8229]
[1742550240382,0.060145,127.92,127.88,48.18312055]
[1742550240580,0.060145,127.92,127.9,18.84312055]
[1742550240779,0.060145,127.92,127.91,7.8217]
[1742550241983,4.1848,127.97,127.91,29.32]
[1742550242186,4.1848,127.97,127.93,18.84312055]
[1742550242484,4.1848,127.97,127.91,48.16312055]
[1742550243186,0.05606512,127.95,127.93,0.05514588]
[1742550243385,29.37606512,127.95,127.89,55.98582055]
[1742550243782,29.37606512,127.95,127.89,48.16312055]
[1742550243984,29.37606512,127.95,127.91,7.8216]
[1742550245886,29.37606512,127.95,127.92,7.821]
[1742550247382,29.37606512,127.95,127.93,7.8204]
[1742550248080,29.37606512,127.95,127.92,7.821]
[1742550248488,29.37606512,127.95,127.93,7.8203]
[1742550248881,29.37606512,127.95,127.88,29.24]
[1742550249789,29.37606512,127.95,127.93,7.82]
[1742550250690,29.37606512,127.95,127.92,7.8208]
[1742550251092,29.37606512,127.95,127.93,7.8203]
[1742550251291,29.37606512,127.95,127.88,29.24]
[1742550251588,29.37606512,127.95,127.94,7.8199]
[1742550256898,29.37606512,127.95,127.88,29.24]
[1742550257496,29.37606512,127.95,127.87,257.72]
[1742550257690,4.3374,127.94,127.87,257.72]
[1742550257888,4.3374,127.94,127.87,276.56312055]
[1742550258093,0.05609002,127.92,127.87,276.56312055]
[1742550258293,0.05609002,127.92,127.9,7.8219]
[1742550258494,0.05609002,127.92,127.87,276.56312055]
[1742550259099,0.05609002,127.92,127.9,7.822]
[1742550259598,0.05609002,127.92,127.89,7.8226]
[1742550261300,7.87719002,127.92,127.88,7.8232]
[1742550261496,0.05609002,127.92,127.87,257.72]
[1742550261694,0.05609002,127.92,127.84,4.0382]
[1742550261996,33.2273,127.93,127.84,4.0382]
[1742550262201,0.05927586,127.89,127.83,18.84312055]
[1742550262501,36.96247586,127.89,127.85,7.8251]
[1742550262704,29.13927586,127.89,127.83,47.92312055]
[1742550263001,29.13927586,127.89,127.85,18.84312055]
[1742550263300,0.05927586,127.89,127.85,18.84312055]
[1742550263695,0.05927586,127.89,127.88,7.8235]
[1742550265798,4.3223,127.95,127.87,18.84312055]
[1742550265799,76.64620598,127.95,127.87,22.96892055]
[1742550266102,76.64620598,127.95,127.89,18.84312055]
[1742550266295,76.64620598,127.95,127.92,7.8208]
[1742550266903,76.70095447,127.95,127.92,7.8748656]
[1742550267795,84.52025447,127.95,127.92,0.0540656]
[1742550267997,5.30570624,127.94,127.92,0.0540656]
[1742550268201,5.30570624,127.93,127.92,7.8750656]
[1742550268397,5.30570624,127.94,127.92,7.8750656]
[1742550268594,7.59644254,127.93,127.92,7.8750656]
[1742550268795,2.2907363,127.93,127.92,7.8750656]
[1742550268994,33.41704849,127.95,127.92,7.8750656]
[1742550269202,5.31717353,127.94,127.92,7.8750656]
[1742550269394,5.31717353,127.93,127.92,7.8750656]
[1742550270004,5.31717353,127.93,127.92,0.0540656]
[1742550270196,7.61435436,127.93,127.92,0.0540656]
[1742550270898,7.61435436,127.93,127.92,7.8751656]
[1742550271696,142.11516501,127.93,127.92,7.8751656]
[1742550272606,142.11516501,127.93,127.89,47.88312055]
[1742550272806,5.34840476,127.92,127.89,47.88312055]
[1742550273000,5.34840476,127.91,127.89,47.88312055]
[1742550273300,5.34840476,127.9,127.89,47.88312055]
[1742550273608,5.34840476,127.9,127.89,55.70602055]
[1742550273903,7.64558559,127.9,127.89,55.70602055]
[1742550274507,7.67323396,127.9,127.89,55.70602055]
[1742550275507,7.67323396,127.9,127.89,36.8629]
[1742550275706,7.67323396,127.9,127.87,22.96892055]
[1742550275707,7.67323396,127.9,127.88,7.8233]
[1742550275911,5.37605313,127.89,127.88,7.8233]
[1742550276104,7.67323396,127.89,127.86,28.9]
[1742550276409,5.37605313,127.88,127.87,7.8238]
[1742550276811,7.67323396,127.88,127.87,7.8238]
[1742550277313,7.67995253,127.88,127.87,7.8238]
[1742550277502,7.67995253,127.88,127.86,7.8244]
[1742550277705,5.3827717,127.87,127.85,258.04]
[1742550277905,5.3827717,127.86,127.85,258.04]